bitfinex/quotes_BTCUSD_20230117
["timestamp","ask_amount","ask_price","bid_price","bid_amount"]
[1673976418321,0.45582597,21118.0,21115.0,0.947184]
[1673976418809,1.40291197,21118.0,21114.0,0.0764]
[1673976419048,0.62722721,21118.0,21114.0,1.023634]
[1673976419292,0.92935797,21118.0,21114.0,1.023634]
[1673976419532,0.45582597,21118.0,21114.0,1.023634]
[1673976419786,0.45582597,21118.0,21114.0,1.21435995]
[1673976420046,0.45582597,21118.0,21114.0,1.023634]
[1673976420309,0.92936597,21118.0,21114.0,0.550015]
[1673976420553,0.62722721,21118.0,21114.0,1.023634]
[1673976420799,0.62722721,21118.0,21114.0,0.947234]
[1673976421320,0.45582597,21118.0,21114.0,0.947234]
[1673976421573,0.45582597,21118.0,21114.0,1.13795995]
[1673976423323,0.45582597,21118.0,21114.0,0.947234]
[1673976424099,0.62722721,21118.0,21114.0,0.947234]
[1673976424345,0.92935697,21118.0,21114.0,0.944734]
[1673976424609,0.45582597,21118.0,21114.0,0.944734]
[1673976424854,0.45582597,21118.0,21114.0,1.094734]
[1673976425102,0.45582597,21118.0,21114.0,0.944734]
[1673976425346,0.92935797,21118.0,21114.0,0.944734]
[1673976425610,0.43604817,21118.0,21114.0,0.944734]
[1673976425856,1.08098841,21118.0,21114.0,0.944734]
[1673976426100,1.63081741,21118.0,21113.0,0.93321113]
[1673976426359,0.49347724,21117.0,21113.0,0.93321113]
[1673976426608,1.11853424,21117.0,21113.0,0.93321113]
[1673976426853,0.24780124,21116.0,21112.0,0.473647]
[1673976427104,0.795677,21115.0,21111.0,0.473667]
[1673976427340,0.64500224,21115.0,21111.0,0.473667]
[1673976427583,0.64500224,21115.0,21111.0,0.947341]
[1673976427865,1.25345863,21115.0,21111.0,0.947341]
[1673976428594,1.25345863,21115.0,21110.0,1.37068305]
[1673976428839,0.64500224,21115.0,21112.0,0.48427742]
[1673976429087,0.473601,21115.0,21112.0,0.95793442]
[1673976429330,0.473601,21115.0,21112.0,0.60079875]
[1673976429825,0.94766603,21116.0,21112.0,1.07446275]
[1673976430092,0.849742,21118.0,21112.0,1.48267411]
[1673976430339,0.473544,21118.0,21114.0,0.15]
[1673976430583,0.473544,21118.0,21115.0,0.66431795]
[1673976431155,0.473522,21119.0,21115.0,0.66431795]
[1673976431156,0.448522,21119.0,21115.0,0.66431795]
[1673976431408,1.53877843,21120.0,21117.0,0.0764]
[1673976431409,0.473498,21120.0,21117.0,0.0764]
[1673976431662,0.473498,21120.0,21118.0,0.101136]
[1673976431886,0.473498,21120.0,21117.0,0.54995]
[1673976432180,0.47797098,21121.0,21117.0,0.54995]
[1673976432433,0.47797098,21121.0,21117.0,0.74067595]
[1673976432939,1.58534977,21121.0,21117.0,0.947102]
[1673976433472,1.41394853,21121.0,21117.0,0.947096]
[1673976433724,1.40894853,21121.0,21117.0,0.947096]
[1673976433987,0.46251555,21121.0,21117.0,0.947096]
[1673976434247,0.46251555,21121.0,21117.0,1.13782195]
[1673976434507,0.93598455,21121.0,21117.0,0.947096]
[1673976435300,1.58084779,21121.0,21117.0,0.473544]
[1673976436037,0.15,21120.0,21117.0,0.473544]
[1673976436305,1.55946855,21121.0,21117.0,0.473544]
[1673976436568,1.40946855,21121.0,21117.0,0.66426995]
[1673976437363,1.40946855,21121.0,21117.0,0.473544]
[1673976438392,0.74852408,21122.0,21118.0,0.19072595]
[1673976438651,0.00495602,21122.0,21119.0,1.21352995]
[1673976439450,0.00495602,21122.0,21120.0,0.398476]
[1673976439930,0.00495602,21122.0,21121.0,1.37761814]
[1673976440199,0.00495602,21122.0,21121.0,0.90415614]
[1673976440466,0.00495602,21122.0,21120.0,0.473473]
[1673976440724,0.00495602,21122.0,21120.0,0.946927]
[1673976441549,0.00495602,21122.0,21120.0,0.473462]
[1673976442590,0.00495602,21122.0,21120.0,0.946946]
[1673976443371,0.00495602,21122.0,21121.0,0.322076]
[1673976443668,0.00495602,21122.0,21121.0,0.473462]
[1673976443885,0.00495602,21122.0,21121.0,0.946924]
[1673976444147,0.00495602,21122.0,21121.0,1.269]
[1673976445428,0.00495602,21122.0,21121.0,1.94823104]
[1673976445695,0.00495602,21122.0,21121.0,3.13568305]
[1673976445948,0.00495602,21122.0,21121.0,3.08614251]
[1673976446469,0.00495602,21122.0,21121.0,2.9449571]
[1673976446734,0.00495602,21122.0,21121.0,2.55756759]
[1673976448012,0.00166972,21122.0,21121.0,2.55756759]
[1673976449108,0.00166972,21122.0,21121.0,2.698753]
[1673976449364,0.00166972,21122.0,21121.0,2.55756759]
[1673976450202,0.00166972,21122.0,21121.0,2.698753]
[1673976450506,0.00166972,21122.0,21121.0,2.55756759]
[1673976451282,0.00166972,21122.0,21121.0,2.698753]
[1673976451832,0.00166972,21122.0,21121.0,2.11920353]
[1673976452090,0.00166972,21122.0,21121.0,1.81920353]
[1673976452351,0.00166972,21122.0,21121.0,1.65790353]
[1673976452921,0.00166972,21122.0,21121.0,1.73430353]
[1673976453682,0.00166972,21122.0,21121.0,2.04280353]
[1673976454204,0.00166972,21122.0,21121.0,2.70864547]
[1673976454717,0.00166972,21122.0,21121.0,2.84983088]
[1673976456031,0.00495602,21123.0,21122.0,0.19390247]
[1673976456287,0.00593156,21124.0,21123.0,0.15]
[1673976456540,0.00593156,21124.0,21123.0,2.98828605]
[1673976456798,0.00593156,21124.0,21123.0,2.84672894]
[1673976457310,3.156e-05,21124.0,21123.0,2.98778605]
[1673976457560,0.00593156,21125.0,21124.0,0.15]
[1673976457834,6.312e-05,21126.0,21125.0,0.15]
[1673976458174,0.00625827,21131.0,21125.0,2.31989594]
[1673976458362,0.00625827,21131.0,21126.0,0.185903]
[1673976458623,0.00625827,21131.0,21126.0,1.508703]
[1673976459906,0.00625827,21131.0,21126.0,1.132303]
[1673976460160,0.15625827,21131.0,21126.0,1.132303]
[1673976460697,0.00625827,21131.0,21126.0,1.432303]
[1673976461178,0.00625827,21131.0,21126.0,1.431303]
[1673976461428,0.00625827,21131.0,21126.0,1.581303]
[1673976462244,0.00625827,21131.0,21126.0,1.657703]
[1673976468051,0.0019714,21127.0,21126.0,1.507703]
[1673976469852,0.0019714,21127.0,21126.0,1.207703]
[1673976470111,0.0019714,21127.0,21126.0,1.046703]
[1673976470361,0.0019714,21127.0,21126.0,0.9467]
[1673976474017,0.0982714,21127.0,21125.0,0.86853589]
[1673976474266,0.0019714,21127.0,21125.0,0.86853589]
[1673976474792,0.0019714,21127.0,21125.0,1.34190789]
[1673976475132,0.0019714,21127.0,21126.0,0.322036]
[1673976475602,0.0019714,21127.0,21126.0,0.9467]
[1673976477982,0.0019714,21127.0,21126.0,1.268736]
[1673976482135,0.0019714,21127.0,21126.0,1.568736]
[1673976482661,0.0019714,21127.0,21126.0,1.268736]
[1673976484294,0.0019714,21127.0,21126.0,1.568736]
[1673976485614,0.0019714,21127.0,21126.0,1.268736]
[1673976485881,0.0019714,21127.0,21126.0,1.568736]
[1673976486397,0.0019714,21127.0,21126.0,1.268736]
[1673976486956,0.0019714,21127.0,21126.0,0.9467]
[1673976487941,0.0019714,21127.0,21126.0,1.268736]
[1673976488251,0.0019714,21127.0,21126.0,2.19908827]
[1673976488459,0.0019714,21127.0,21126.0,3.07177101]
[1673976488718,0.00067413,21127.0,21126.0,2.78940455]
[1673976488981,0.00067413,21127.0,21126.0,2.67494682]
[1673976489239,0.00067413,21127.0,21126.0,3.50393377]
[1673976489555,0.00067413,21127.0,21126.0,3.50382294]
[1673976490264,0.00015208,21127.0,21126.0,3.50382294]
[1673976491059,0.00015208,21127.0,21126.0,2.84268054]
[1673976491060,0.00015208,21127.0,21126.0,2.43827682]
[1673976491328,0.00015208,21127.0,21126.0,3.2678041]
[1673976491590,0.00015208,21127.0,21126.0,2.43827682]
[1673976492622,0.00117615,21130.0,21127.0,0.35354222]
[1673976492881,0.00117615,21130.0,21129.0,0.49578723]
[1673976493141,0.00117615,21130.0,21129.0,2.33341522]
[1673976493437,0.00117615,21130.0,21129.0,2.34191522]
[1673976493684,0.00117615,21130.0,21129.0,2.20533498]
[1673976493940,0.00117615,21130.0,21129.0,3.72590324]
[1673976494194,0.00117615,21130.0,21129.0,4.01620324]
[1673976494838,0.00117615,21130.0,21129.0,4.34737996]
[1673976494988,0.00117615,21130.0,21129.0,4.34647996]
[1673976495801,0.00117615,21130.0,21129.0,4.75268874]
[1673976496060,0.00117615,21130.0,21129.0,5.22446056]
[1673976496593,0.00117615,21130.0,21129.0,5.70140283]
[1673976496860,0.00625827,21131.0,21130.0,0.15]
[1673976497127,0.00625827,21131.0,21130.0,2.21408093]
[1673976497410,0.00625827,21131.0,21130.0,2.36628093]
[1673976497690,0.00625827,21131.0,21130.0,3.19666467]
[1673976497949,0.00625827,21131.0,21130.0,4.3504687]
[1673976498203,0.00658207,21136.0,21131.0,0.15]
[1673976498466,0.00658207,21136.0,21133.0,0.36434123]
[1673976498780,0.00658207,21136.0,21133.0,3.4591504]
[1673976499042,0.00658207,21136.0,21133.0,3.3262884]
[1673976499549,0.00658207,21136.0,21133.0,3.82104905]
[1673976499817,0.00658207,21136.0,21133.0,3.60901003]
[1673976500291,0.00658207,21136.0,21133.0,2.53233227]
[1673976500564,0.00658207,21136.0,21133.0,2.09096947]
[1673976501329,0.00658207,21136.0,21133.0,2.09202707]
[1673976502125,0.00658207,21136.0,21133.0,2.39202707]
[1673976502959,0.00658207,21136.0,21133.0,2.53334384]
[1673976503739,0.00658207,21136.0,21133.0,2.39202707]
[1673976507272,0.00658207,21136.0,21133.0,3.04898578]
[1673976507496,0.00658207,21136.0,21133.0,3.53161272]
[1673976507717,0.00658207,21136.0,21133.0,3.67302149]
[1673976508331,0.00884518,21134.0,21133.0,3.39029595]
[1673976508831,0.00303094,21134.0,21133.0,3.39029595]
[1673976509080,0.00303094,21134.0,21133.0,3.53138726]
[1673976509339,0.00303094,21134.0,21133.0,3.39029595]
[1673976509840,0.00303094,21134.0,21133.0,3.53138659]
[1673976510101,0.00303094,21134.0,21133.0,3.52845965]
[1673976510356,0.17443218,21134.0,21133.0,2.30871771]
[1673976510623,0.00303094,21134.0,21133.0,2.16762707]
[1673976514714,0.00303094,21134.0,21133.0,2.09152707]
[1673976515219,0.00303094,21134.0,21133.0,2.01592707]
[1673976515456,0.00303094,21134.0,21133.0,2.31592707]
[1673976517559,0.00303094,21134.0,21133.0,3.82875904]
[1673976518111,0.00303094,21134.0,21133.0,3.61671604]
[1673976518366,0.00303094,21134.0,21133.0,3.82841257]
[1673976518625,0.00303094,21134.0,21133.0,3.59182257]
[1673976519904,0.00303094,21134.0,21133.0,3.25910469]
[1673976520164,0.00303094,21134.0,21133.0,2.53288784]
[1673976522716,0.00303094,21134.0,21133.0,2.00636947]
[1673976522967,0.00303094,21134.0,21133.0,1.90644647]
[1673976525297,0.09933094,21134.0,21133.0,1.90644647]
[1673976525564,0.49726694,21134.0,21133.0,0.21204123]
[1673976526324,1.61501018,21134.0,21133.0,0.21204123]
[1673976526582,1.44360894,21134.0,21133.0,0.21204123]
[1673976527600,1.44360894,21134.0,21130.0,0.40591577]
[1673976527891,0.398436,21133.0,21130.0,0.40591577]
[1673976528165,0.0763,21131.0,21130.0,0.40591577]
[1673976528448,0.548336,21131.0,21130.0,0.40591577]
[1673976528695,0.398336,21131.0,21130.0,0.40591577]
[1673976528956,0.0763,21131.0,21130.0,0.40591577]
[1673976529208,0.398336,21131.0,21130.0,0.40591577]
[1673976530009,0.0763,21131.0,21130.0,0.40591577]
[1673976530772,0.0764,21132.0,21130.0,0.40591577]
[1673976531361,0.397836,21131.0,21130.0,0.40591577]
[1673976531642,1.25297215,21131.0,21130.0,0.40591577]
[1673976532926,1.25289186,21131.0,21130.0,0.40591577]
[1673976537063,0.77965386,21131.0,21130.0,0.40591577]
[1673976538644,1.72612986,21131.0,21130.0,0.40091577]
[1673976538926,1.40417415,21131.0,21130.0,0.40091577]
[1673976539177,1.25295515,21131.0,21130.0,0.40091577]
[1673976539971,0.397819,21131.0,21130.0,0.40091577]
[1673976540260,0.0764,21132.0,21130.0,0.40091577]
[1673976540799,0.473211,21133.0,21130.0,0.40091577]
[1673976541080,0.00303094,21134.0,21130.0,1.53815872]
[1673976541362,0.00303094,21134.0,21131.0,0.3]
[1673976541837,0.00303094,21134.0,21132.0,0.94643]
[1673976542607,0.00303094,21134.0,21132.0,0.473215]
[1673976544178,0.398319,21133.0,21130.0,0.87415877]
[1673976544405,0.322019,21132.0,21130.0,0.87415877]
[1673976544666,0.322019,21131.0,21130.0,1.34741877]
[1673976544908,0.0763,21133.0,21130.0,1.34741877]
[1673976545166,0.0763,21133.0,21130.0,0.87415877]
[1673976545482,0.549495,21133.0,21130.0,0.87415877]
[1673976545685,0.322019,21132.0,21130.0,0.87415877]
[1673976545933,0.322019,21131.0,21130.0,0.40091577]
[1673976546438,0.322019,21131.0,21130.0,0.87417577]
[1673976546709,0.0763,21133.0,21130.0,0.87417577]
[1673976546939,0.0763,21133.0,21130.0,1.53816172]
[1673976547188,0.0763,21133.0,21130.0,1.34743577]
[1673976548763,0.0763,21133.0,21130.0,0.87417577]
[1673976549308,0.322019,21132.0,21130.0,0.87417577]
[1673976549528,0.00303094,21134.0,21130.0,1.34743577]
[1673976549780,0.00303094,21134.0,21130.0,1.53816172]
[1673976550527,0.00303094,21134.0,21130.0,1.34743577]
[1673976551546,0.00303094,21134.0,21131.0,0.46784355]
[1673976551887,0.00303094,21134.0,21132.0,0.94643]
[1673976553296,0.00303094,21134.0,21132.0,0.473209]
[1673976553784,0.00303094,21134.0,21131.0,1.11428455]
[1673976554045,0.00303094,21134.0,21132.0,0.946401]
[1673976555586,0.00303094,21134.0,21132.0,0.473207]
[1673976556616,0.00303094,21134.0,21132.0,0.946422]
[1673976561495,0.00294273,21134.0,21132.0,0.946422]
[1673976562787,0.07884273,21134.0,21132.0,0.473215]
[1673976563039,0.322019,21133.0,21132.0,0.94643]
[1673976563554,0.322019,21133.0,21132.0,0.473215]
[1673976564055,0.322019,21133.0,21131.0,0.64106355]
[1673976564318,0.322019,21132.0,21131.0,0.64106355]
[1673976564631,0.22884273,21134.0,21131.0,0.64106355]
[1673976564844,0.22884273,21134.0,21131.0,0.16784355]
[1673976564845,0.473196,21133.0,21131.0,0.16784355]
[1673976565101,0.472019,21132.0,21130.0,1.01532054]
[1673976565361,0.70203173,21134.0,21130.0,0.87415977]
[1673976565362,0.322019,21131.0,21130.0,0.87415977]
[1673976565612,0.473194,21133.0,21130.0,0.87415977]
[1673976566113,0.322019,21132.0,21130.0,1.01532054]
[1673976566356,0.623194,21133.0,21130.0,1.01532054]
[1673976566601,0.473194,21133.0,21130.0,1.01532054]
[1673976566850,0.322019,21132.0,21130.0,1.01532054]
[1673976567096,0.473194,21133.0,21130.0,1.01532054]
[1673976567606,0.322019,21132.0,21130.0,1.01532054]
[1673976567819,0.322019,21131.0,21130.0,1.01532054]
[1673976568077,0.473194,21133.0,21130.0,1.01532054]
[1673976568582,0.322019,21132.0,21130.0,1.01532054]
[1673976568824,0.473194,21133.0,21130.0,1.01532054]
[1673976569838,0.946387,21133.0,21130.0,0.54207654]
[1673976570091,0.398419,21132.0,21130.0,0.40091577]
[1673976570351,0.322019,21131.0,21130.0,0.40091577]
[1673976571113,0.0764,21132.0,21130.0,0.69649678]
[1673976571359,0.0764,21132.0,21130.0,0.55533601]
[1673976571625,0.322019,21131.0,21130.0,0.55533601]
[1673976572139,0.322019,21131.0,21130.0,0.08207601]
[1673976572396,0.322019,21131.0,21130.0,0.55533601]
[1673976572653,0.322019,21131.0,21130.0,0.08207601]
[1673976572906,0.0764,21132.0,21130.0,0.08207601]
[1673976573436,0.0764,21132.0,21130.0,0.09729496]
[1673976573681,0.322019,21131.0,21130.0,0.09729496]
[1673976574218,0.473205,21133.0,21130.0,1.16389316]
[1673976574476,0.97500461,21134.0,21130.0,0.92341226]
[1673976574780,1.44818761,21134.0,21130.0,1.58739821]
[1673976575267,0.322019,21133.0,21130.0,1.37570168]
[1673976575532,0.322019,21132.0,21130.0,1.18497573]
[1673976575794,1.44818761,21134.0,21130.0,1.18497573]
[1673976576081,1.44817361,21134.0,21130.0,1.58739821]
[1673976576313,0.97498861,21134.0,21130.0,1.58739821]
[1673976576594,0.97498861,21134.0,21130.0,1.18497573]
[1673976576859,0.322019,21133.0,21130.0,1.18497573]
[1673976577121,0.322019,21132.0,21130.0,0.92341226]
[1673976577566,0.322019,21131.0,21130.0,0.92341226]
[1673976577567,0.97500861,21134.0,21130.0,0.92341226]
[1673976577817,0.97500861,21134.0,21130.0,1.11413821]
[1673976578332,0.322019,21133.0,21130.0,0.92341226]
[1673976578583,0.322019,21132.0,21130.0,0.71171073]
[1673976578838,0.322019,21131.0,21130.0,0.71171073]
[1673976579089,0.473196,21133.0,21130.0,0.71171073]
[1673976579339,0.473207,21133.0,21130.0,0.23845573]
[1673976579601,0.322019,21132.0,21130.0,0.23845573]
[1673976579883,0.322019,21131.0,21130.0,0.23845573]
[1673976580129,0.473207,21133.0,21130.0,0.23845573]
[1673976580380,0.473207,21133.0,21130.0,0.71171573]
[1673976580643,0.322019,21132.0,21130.0,0.71171573]
[1673976580910,0.473207,21133.0,21130.0,0.71171573]
[1673976581693,0.322019,21132.0,21130.0,0.71171573]
[1673976581973,0.473207,21133.0,21130.0,0.71163633]
[1673976583103,0.322019,21132.0,21130.0,0.57047556]
[1673976583369,0.322019,21131.0,21130.0,0.71163633]
[1673976583637,1.11455691,21134.0,21130.0,0.71163633]
[1673976583638,1.36317291,21134.0,21130.0,0.71163633]
[1673976583938,1.05120361,21134.0,21130.0,1.11405881]
[1673976584200,1.05120361,21134.0,21131.0,0.14116077]
[1673976585243,1.52437461,21134.0,21130.0,0.64079881]
[1673976585507,1.69577585,21134.0,21130.0,0.45007286]
[1673976585766,0.53838706,21133.0,21130.0,0.09721556]
[1673976586016,0.322019,21132.0,21130.0,0.09721556]
[1673976586277,0.322019,21131.0,21130.0,0.09721556]
[1673976588090,1.16278806,21133.0,21130.0,0.09721556]
[1673976588350,0.322019,21132.0,21130.0,0.09721556]
[1673976588614,0.68957806,21133.0,21130.0,0.09721556]
[1673976588615,0.322019,21131.0,21130.0,0.09721556]
[1673976589390,1.16278106,21133.0,21130.0,0.09721556]
[1673976589644,0.322019,21132.0,21130.0,0.09721556]
[1673976589869,0.322019,21131.0,21130.0,0.09721556]
[1673976590191,1.022213,21133.0,21130.0,0.09721556]
[1673976590693,0.322019,21132.0,21130.0,0.09721556]
[1673976590914,0.322019,21131.0,21130.0,0.09721556]
[1673976592494,1.31278206,21133.0,21130.0,0.09721556]
[1673976592495,1.16278206,21133.0,21130.0,0.09721556]
[1673976593062,0.322019,21132.0,21130.0,0.09721556]
[1673976593317,0.322019,21131.0,21130.0,0.09721556]
[1673976593825,1.16279606,21133.0,21130.0,0.09721556]
[1673976594086,1.16277506,21133.0,21130.0,0.09721556]
[1673976594371,0.322019,21132.0,21130.0,0.09721556]
[1673976594626,0.322019,21131.0,21130.0,0.09721556]
[1673976594883,0.473218,21132.0,21130.0,0.09721556]
[1673976596246,0.322019,21131.0,21130.0,0.09721556]
[1673976597024,0.473218,21132.0,21130.0,0.09721556]
[1673976597293,0.473238,21131.0,21130.0,0.09721556]
[1673976597588,0.795257,21131.0,21130.0,0.09721556]
[1673976597839,0.322019,21131.0,21130.0,0.09721556]
[1673976598604,0.473218,21132.0,21130.0,0.09721556]
[1673976599104,0.322019,21131.0,21130.0,0.09721556]
[1673976599368,0.0758,21133.0,21130.0,0.23837633]
[1673976599614,0.549005,21133.0,21130.0,0.23837633]
[1673976599880,0.322019,21132.0,21130.0,0.09721556]
[1673976600135,0.31483003,21131.0,21130.0,0.09721556]
[1673976600394,0.31483003,21131.0,21130.0,1.04370656]
[1673976600667,0.2258,21133.0,21130.0,1.04370656]
[1673976600921,1.87570955,21134.0,21130.0,1.18486733]
[1673976601183,1.87570955,21134.0,21130.0,1.37559328]
[1673976601434,1.87570955,21134.0,21130.0,1.11403781]
[1673976601683,0.322019,21133.0,21130.0,0.90234128]
[1673976601932,0.473215,21132.0,21130.0,0.23837633]
[1673976602182,0.322019,21131.0,21130.0,0.23837633]
[1673976602438,0.946444,21132.0,21130.0,0.23837633]
[1673976602940,0.76378006,21133.0,21130.0,0.23837633]
[1673976603513,0.322019,21132.0,21130.0,0.23837633]
[1673976603708,0.322019,21131.0,21130.0,0.23837633]
[1673976603965,0.322019,21131.0,21130.0,0.09721556]
[1673976604221,0.61379106,21132.0,21130.0,0.09721556]
[1673976604958,0.322019,21131.0,21130.0,0.09721556]
[1673976605225,0.14056806,21132.0,21130.0,0.09721556]
[1673976605739,0.473226,21132.0,21130.0,0.09721556]
[1673976606032,0.61379406,21132.0,21130.0,0.09721556]
[1673976606506,0.473226,21132.0,21130.0,0.09721556]
[1673976606745,0.61379406,21132.0,21130.0,0.09721556]
[1673976607018,0.946441,21132.0,21130.0,0.09721556]
[1673976607278,0.322019,21131.0,21130.0,0.09721556]
[1673976607795,0.14056806,21132.0,21130.0,0.09721556]
[1673976608322,1.44813694,21133.0,21130.0,0.09721556]
[1673976608631,0.46258706,21132.0,21130.0,0.09721556]
[1673976608892,0.322019,21131.0,21130.0,0.09721556]
[1673976609160,0.81601459,21132.0,21130.0,0.09721556]
[1673976609412,0.322019,21131.0,21130.0,0.09721556]
[1673976609920,0.61378406,21132.0,21130.0,0.09721556]
[1673976610428,0.322019,21131.0,21130.0,0.09721556]
[1673976610677,0.61378406,21132.0,21130.0,0.09721556]
[1673976611265,0.322019,21131.0,21130.0,0.09721556]
[1673976611704,0.31180138,21131.0,21130.0,0.09721556]
[1673976612209,0.90083294,21133.0,21130.0,0.09721556]
[1673976612455,0.473223,21132.0,21130.0,0.28794151]
[1673976612706,0.946438,21132.0,21130.0,0.23837633]
[1673976613215,0.946438,21132.0,21130.0,0.09721556]
[1673976613484,0.946438,21132.0,21130.0,0.23837633]
[1673976613791,0.473223,21132.0,21130.0,0.23837633]
[1673976613975,0.68967406,21133.0,21130.0,0.09721556]
[1673976614238,0.68967406,21133.0,21130.0,0.23837633]
[1673976614239,0.322019,21132.0,21130.0,0.23837633]
[1673976614510,0.549106,21133.0,21130.0,0.23837633]
[1673976615063,0.0759,21133.0,21130.0,0.71163633]
[1673976615307,0.0759,21133.0,21130.0,0.92331586]
[1673976615800,0.0759,21133.0,21130.0,0.71161933]
[1673976616080,0.0759,21133.0,21130.0,0.92331586]
[1673976616312,0.0759,21133.0,21130.0,1.18487533]
[1673976616821,0.0759,21133.0,21130.0,1.39657186]
[1673976618098,0.0759,21133.0,21130.0,1.18487533]
[1673976618345,0.0759,21133.0,21130.0,1.39657186]
[1673976618912,1.11557467,21134.0,21130.0,1.39657186]
[1673976619124,1.58875667,21134.0,21130.0,1.58729781]
[1673976619375,1.58875667,21134.0,21130.0,0.64079881]
[1673976619622,0.322019,21133.0,21130.0,0.23837633]
[1673976619881,0.322019,21132.0,21130.0,0.23837633]
[1673976620130,0.61377006,21133.0,21130.0,0.23837633]
[1673976620131,0.322019,21131.0,21130.0,0.23837633]
[1673976620389,0.76377506,21133.0,21130.0,0.09721556]
[1673976620648,1.08696806,21133.0,21130.0,0.09721556]
[1673976620894,0.322019,21132.0,21130.0,0.57046356]
[1673976621166,0.61376106,21133.0,21130.0,0.57046956]
[1673976622446,0.61376106,21133.0,21130.0,0.71163033]
[1673976622709,0.61376106,21133.0,21130.0,0.57046956]
[1673976622930,0.322019,21132.0,21130.0,0.09721556]
[1673976623164,0.322019,21131.0,21130.0,0.09721556]
[1673976623416,1.29814294,21133.0,21130.0,0.09721556]
[1673976623680,1.29813994,21133.0,21130.0,0.09721556]
[1673976624203,1.08698706,21133.0,21130.0,0.09721556]
[1673976624450,1.29813994,21133.0,21130.0,0.09721556]
[1673976624978,1.29812494,21133.0,21130.0,0.09721556]
[1673976625248,1.29812494,21133.0,21130.0,0.09621556]
[1673976626041,0.322019,21132.0,21130.0,0.09621556]
[1673976626384,0.322019,21131.0,21130.0,0.09621556]
[1673976626385,1.29812294,21133.0,21130.0,0.09621556]
[1673976626638,0.322019,21132.0,21130.0,0.09621556]
[1673976626895,0.322019,21131.0,21130.0,0.09621556]
[1673976627141,1.29814494,21133.0,21130.0,0.09621556]
[1673976627397,1.29812594,21133.0,21130.0,0.09621556]
[1673976627650,0.322019,21132.0,21130.0,0.09621556]
[1673976627897,1.08698806,21133.0,21130.0,0.23737633]
[1673976628435,0.322019,21132.0,21130.0,0.23737633]
[1673976628691,1.29813994,21133.0,21130.0,0.09621556]
[1673976629008,0.322019,21132.0,21130.0,0.23737633]
[1673976629320,0.322019,21131.0,21130.0,0.56946656]
[1673976629510,1.0434983,21133.0,21130.0,0.09621556]
[1673976629757,0.946471,21132.0,21130.0,0.09621556]
[1673976630004,0.322019,21131.0,21130.0,0.09621556]
[1673976630275,0.322019,21131.0,21130.0,0.01521895]
[1673976631046,0.946471,21132.0,21130.0,0.01521895]
[1673976631310,0.473237,21132.0,21130.0,0.01521895]
[1673976631532,0.473237,21132.0,21130.0,0.15637972]
[1673976631806,0.473237,21132.0,21130.0,0.01521895]
[1673976632012,0.322019,21131.0,21130.0,0.01521895]
[1673976632766,0.473238,21131.0,21130.0,0.01521895]
[1673976633017,1.47457338,21131.0,21130.0,0.01521895]
[1673976633265,1.79659238,21131.0,21130.0,0.01521895]
[1673976633517,2.14831332,21131.0,21130.0,0.01521895]
[1673976633770,2.28928244,21131.0,21128.0,0.01537664]
[1673976634019,0.398419,21130.0,21128.0,0.01537664]
[1673976634276,0.322019,21129.0,21128.0,0.01537664]
[1673976635314,0.2264,21130.0,21128.0,0.01537664]
[1673976635560,1.53944904,21131.0,21128.0,0.01537664]
[1673976635561,1.53946204,21131.0,21128.0,0.01537664]
[1673976636075,0.322019,21130.0,21128.0,0.01537664]
[1673976636329,0.322019,21129.0,21128.0,0.01537664]
[1673976636576,1.39700969,21131.0,21128.0,0.01537664]
[1673976636917,0.946523,21130.0,21128.0,0.01537664]
[1673976637093,0.81078185,21129.0,21128.0,0.01537664]
[1673976637348,0.96078185,21129.0,21128.0,0.01537664]
[1673976637603,0.81078185,21129.0,21128.0,0.01537664]
[1673976637871,1.28406485,21129.0,21128.0,0.01537664]
[1673976638890,1.75734785,21129.0,21128.0,0.01537664]
[1673976641199,1.28406485,21129.0,21128.0,0.01537664]
[1673976641454,1.75734785,21129.0,21128.0,0.01537664]
[1673976641736,2.5280132,21129.0,21128.0,0.01537664]
[1673976642017,2.52777398,21129.0,21128.0,0.01537664]
[1673976642505,2.59850242,21129.0,21128.0,0.01537664]
[1673976642765,3.07260459,21129.0,21128.0,0.01537664]
[1673976643023,3.00178872,21129.0,21128.0,0.01537664]
[1673976643608,3.18528872,21129.0,21128.0,0.01537664]
[1673976644109,3.3964416,21129.0,21128.0,0.01537664]
[1673976644391,2.59908655,21129.0,21128.0,0.01537664]
[1673976646252,2.45874954,21129.0,21128.0,0.01537664]
[1673976646508,2.59908655,21129.0,21128.0,0.01537664]
[1673976647319,2.55853455,21129.0,21128.0,0.01537664]
[1673976648357,2.41819754,21129.0,21128.0,0.01537664]
[1673976648619,2.41819754,21129.0,21128.0,0.01503664]
[1673976652221,1.94099585,21129.0,21128.0,0.20576259]
[1673976652513,1.71679585,21129.0,21128.0,0.11141664]
[1673976652984,1.71679585,21129.0,21128.0,0.01503664]
[1673976654541,0.322019,21129.0,21128.0,0.20771664]
[1673976654831,0.14327974,21134.0,21128.0,1.56795259]
[1673976655080,0.00294273,21134.0,21131.0,0.1112]
[1673976655311,0.47612173,21134.0,21132.0,0.19072595]
[1673976655802,0.47611573,21134.0,21131.0,0.1112]
[1673976656571,0.94928673,21134.0,21130.0,0.584952]
[1673976656821,1.12068797,21134.0,21130.0,0.584952]
[1673976657603,1.12068797,21134.0,21130.0,0.1117]
[1673976657604,0.94928673,21134.0,21130.0,0.1117]
[1673976658593,0.00294273,21134.0,21131.0,0.38463473]
[1673976658845,0.00294273,21134.0,21131.0,1.44319173]
[1673976659097,0.00294273,21134.0,21131.0,1.25246578]
[1673976659637,0.00294273,21134.0,21133.0,0.3363]
[1673976659897,0.00294273,21134.0,21133.0,1.83738134]
[1673976660366,0.00294273,21134.0,21133.0,1.98738134]
[1673976660626,0.00294273,21134.0,21133.0,2.13738134]
[1673976660881,0.00294273,21134.0,21133.0,2.35428476]
[1673976661129,0.00294273,21134.0,21133.0,1.91691742]
[1673976661382,0.00294273,21134.0,21133.0,1.76987502]
[1673976661642,0.00294273,21134.0,21133.0,1.46987502]
[1673976662148,0.00294273,21134.0,21133.0,1.46881742]
[1673976662420,0.00294273,21134.0,21133.0,0.32900342]
[1673976662921,0.00294273,21134.0,21133.0,1.27538942]
[1673976663177,0.00294273,21134.0,21133.0,1.67310842]
[1673976663428,0.00294273,21134.0,21133.0,1.97310842]
[1673976663681,0.00294273,21134.0,21133.0,2.55163653]
[1673976664193,0.00294273,21134.0,21133.0,2.76333306]
[1673976664446,0.00294273,21134.0,21133.0,2.9894051]
[1673976664707,0.00154993,21134.0,21133.0,2.84799062]
[1673976664995,0.00658207,21136.0,21133.0,3.35703202]
[1673976665295,0.00658207,21136.0,21135.0,0.93557958]
[1673976665496,0.00658207,21136.0,21135.0,3.54343679]